Body,Body Name,Date,Transaction Number,Invoice Number,Amount,Supplier Name,Supplier ID,Expense Area,Expense Type,Expense Code,,
http://statistics.data.gov.uk/id/local-authority/47UB,Bromsgrove District Council,24/07/2015,1099,9001700191,418.38,Birmingham City Council,1035,Executive Director Of Finance,Consultants Fees,4351,,
http://statistics.data.gov.uk/id/local-authority/47UB,Bromsgrove District Council,24/07/2015,2989,C/BOI35587,"5,680.54",Civica Uk Limited,1233,Executive Director Of Finance,Agency Staff,3020,,
http://statistics.data.gov.uk/id/local-authority/47UB,Bromsgrove District Council,24/07/2015,57,M/LE026691,"3,971.86",Civica Uk Limited,1233,Executive Director Of Finance,Software Licences,4501,,
http://statistics.data.gov.uk/id/local-authority/47UB,Bromsgrove District Council,17/07/2015,1943,4074,"49,000.00",Sutcliffe Play South West,1234,Capital Schemes Culture & Leis,Other Contract Payments,8155,,
http://statistics.data.gov.uk/id/local-authority/47UB,Bromsgrove District Council,24/07/2015,2147,200044504,"121,814.28",Redditch Borough Council,12546,Vat Control Account,Purchase Vat Adjustment,1319,,
http://statistics.data.gov.uk/id/local-authority/47UB,Bromsgrove District Council,17/07/2015,2235,200050520,"16,296.58",Redditch Borough Council,12546,Executive Director Planning,Shared Service Expend - Rbc,5015,,
http://statistics.data.gov.uk/id/local-authority/47UB,Bromsgrove District Council,31/07/2015,2792,200062431,"11,913.38",Redditch Borough Council,12546,Executive Director And Deputy ,Shared Service Expend - Rbc,5015,,
http://statistics.data.gov.uk/id/local-authority/47UB,Bromsgrove District Council,31/07/2015,2792,200062431,"16,293.47",Redditch Borough Council,12546,Executive Director And Deputy ,Shared Service Expend - Rbc,5015,,
http://statistics.data.gov.uk/id/local-authority/47UB,Bromsgrove District Council,31/07/2015,2792,200062431,"1,866.91",Redditch Borough Council,12546,Executive Director And Deputy ,Shared Service Expend - Rbc,5015,,
http://statistics.data.gov.uk/id/local-authority/47UB,Bromsgrove District Council,31/07/2015,2792,200062431,"3,514.10",Redditch Borough Council,12546,Executive Director And Deputy ,Shared Service Expend - Rbc,5015,,
http://statistics.data.gov.uk/id/local-authority/47UB,Bromsgrove District Council,31/07/2015,2858,200062987,"2,036.17",Redditch Borough Council,12546,Executive Director And Deputy ,B'Grove Shared Services Cost,5012,,
http://statistics.data.gov.uk/id/local-authority/47UB,Bromsgrove District Council,31/07/2015,3021,200064319,"12,342.02",Redditch Borough Council,12546,Executive Director And Deputy ,Shared Service Expend - Rbc,5015,,
http://statistics.data.gov.uk/id/local-authority/47UB,Bromsgrove District Council,10/07/2015,333,2004202189,"3,000.00",Redditch Borough Council,12546,Executive Director And Deputy ,Contributions,4212,,
http://statistics.data.gov.uk/id/local-authority/47UB,Bromsgrove District Council,10/07/2015,94,2004199811,"3,675.00",Redditch Borough Council,12546,Executive Director And Deputy ,Contributions,4212,,
http://statistics.data.gov.uk/id/local-authority/47UB,Bromsgrove District Council,17/07/2015,2425,5800012554,"3,603.60",Cannon (Ocs Group Uk Limited),126,Technical Pollution,Contractors,5158,,
http://statistics.data.gov.uk/id/local-authority/47UB,Bromsgrove District Council,24/07/2015,1435,215370,"1,601.12",Advanced Legal Ltd,1380,Executive Director Of Finance,Software Licences,4501,,
http://statistics.data.gov.uk/id/local-authority/47UB,Bromsgrove District Council,24/07/2015,1126,41538,367.07,Pja Electrics,1556,Executive Director And Deputy ,Office Equip Repairs & Maint,4002,,
http://statistics.data.gov.uk/id/local-authority/47UB,Bromsgrove District Council,24/07/2015,1126,41538,74.55,Pja Electrics,1556,Executive Director And Deputy ,Office Equip Repairs & Maint,4002,,
http://statistics.data.gov.uk/id/local-authority/47UB,Bromsgrove District Council,10/07/2015,2797,LGUS5CPM,170.82,N Power Limited,1919,Executive Director And Deputy ,Electricity,3300,,
http://statistics.data.gov.uk/id/local-authority/47UB,Bromsgrove District Council,10/07/2015,2797,LGUS5CPM,"1,294.59",N Power Limited,1919,Executive Director And Deputy ,Electricity,3300,,
http://statistics.data.gov.uk/id/local-authority/47UB,Bromsgrove District Council,10/07/2015,2798,LGUS5CMV,"1,417.73",N Power Limited,1919,Executive Director And Deputy ,Electricity,3300,,
http://statistics.data.gov.uk/id/local-authority/47UB,Bromsgrove District Council,10/07/2015,2800,LGUTBTDZ,830.71,N Power Limited,1919,Executive Director And Deputy ,Electricity,3300,,
http://statistics.data.gov.uk/id/local-authority/47UB,Bromsgrove District Council,10/07/2015,2801,LGUS63ZZ,"2,949.29",N Power Limited,1919,Executive Director And Deputy ,Electricity,3300,,
http://statistics.data.gov.uk/id/local-authority/47UB,Bromsgrove District Council,10/07/2015,2801,LGUS63ZZ,13.41,N Power Limited,1919,Executive Director And Deputy ,Electricity,3300,,
http://statistics.data.gov.uk/id/local-authority/47UB,Bromsgrove District Council,10/07/2015,2801,LGUS63ZZ,779.75,N Power Limited,1919,Executive Director And Deputy ,Electricity,3300,,
http://statistics.data.gov.uk/id/local-authority/47UB,Bromsgrove District Council,10/07/2015,2801,LGUS63ZZ,19.29,N Power Limited,1919,Executive Director And Deputy ,Electricity,3300,,
http://statistics.data.gov.uk/id/local-authority/47UB,Bromsgrove District Council,10/07/2015,2801,LGUS63ZZ,15.62,N Power Limited,1919,Executive Director And Deputy ,Electricity,3300,,
http://statistics.data.gov.uk/id/local-authority/47UB,Bromsgrove District Council,10/07/2015,2801,LGUS63ZZ,37.64,N Power Limited,1919,Executive Director And Deputy ,Electricity,3300,,
http://statistics.data.gov.uk/id/local-authority/47UB,Bromsgrove District Council,10/07/2015,2801,LGUS63ZZ,30.84,N Power Limited,1919,Executive Director And Deputy ,Electricity,3300,,
http://statistics.data.gov.uk/id/local-authority/47UB,Bromsgrove District Council,10/07/2015,2801,LGUS63ZZ,920.77,N Power Limited,1919,Executive Director And Deputy ,Electricity,3300,,
http://statistics.data.gov.uk/id/local-authority/47UB,Bromsgrove District Council,10/07/2015,2801,LGUS63ZZ,450.78,N Power Limited,1919,Executive Director And Deputy ,Electricity,3300,,
http://statistics.data.gov.uk/id/local-authority/47UB,Bromsgrove District Council,31/07/2015,3265,LGUTKT34,165.33,N Power Limited,1919,Executive Director And Deputy ,Electricity,3300,,
http://statistics.data.gov.uk/id/local-authority/47UB,Bromsgrove District Council,31/07/2015,3265,LGUTKT34,"1,252.83",N Power Limited,1919,Executive Director And Deputy ,Electricity,3300,,
http://statistics.data.gov.uk/id/local-authority/47UB,Bromsgrove District Council,31/07/2015,2904,0001527770,"1,809.50",European Electronique,1920,Business Transformation,Computer Equipment,4506,,
http://statistics.data.gov.uk/id/local-authority/47UB,Bromsgrove District Council,31/07/2015,2904,0001527770,52.78,European Electronique,1920,Business Transformation,Computer Equipment,4506,,
http://statistics.data.gov.uk/id/local-authority/47UB,Bromsgrove District Council,24/07/2015,1108,2203018749,"2,520.00",Worcestershire County Council,195,Executive Director And Deputy ,Other Local Authorities,5016,,
http://statistics.data.gov.uk/id/local-authority/47UB,Bromsgrove District Council,24/07/2015,1375,2202046818,"7,152.00",Worcestershire County Council,195,Executive Director And Deputy ,Other Local Authorities,5016,,
http://statistics.data.gov.uk/id/local-authority/47UB,Bromsgrove District Council,31/07/2015,197,2205002091,"10,000.00",Worcestershire County Council,195,Executive Director Planning,Other Local Authorities,5016,,
http://statistics.data.gov.uk/id/local-authority/47UB,Bromsgrove District Council,10/07/2015,2440,2202047274,541.88,Worcestershire County Council,195,Trading Standards / Animal Hea,Contractors,5158,,
http://statistics.data.gov.uk/id/local-authority/47UB,Bromsgrove District Council,10/07/2015,2628,2202047561,"2,312.00",Worcestershire County Council,195,Trading Standards / Animal Hea,Contractors,5158,,
http://statistics.data.gov.uk/id/local-authority/47UB,Bromsgrove District Council,10/07/2015,2344,1505/12682,"3,570.00",Gullivers Truck Hire Ltd,2026,Executive Director And Deputy ,Contract Hire Of Vehicles,3761,,
http://statistics.data.gov.uk/id/local-authority/47UB,Bromsgrove District Council,10/07/2015,2723,1506/126621,"3,740.00",Gullivers Truck Hire Ltd,2026,Executive Director And Deputy ,Contract Hire Of Vehicles,3761,,
http://statistics.data.gov.uk/id/local-authority/47UB,Bromsgrove District Council,10/07/2015,2724,1506/26620,726.00,Gullivers Truck Hire Ltd,2026,Executive Director And Deputy ,Contract Hire Of Vehicles,3761,,
http://statistics.data.gov.uk/id/local-authority/47UB,Bromsgrove District Council,17/07/2015,2867,1505/12683,693.00,Gullivers Truck Hire Ltd,2026,Executive Director And Deputy ,Contract Hire Of Vehicles,3761,,
http://statistics.data.gov.uk/id/local-authority/47UB,Bromsgrove District Council,10/07/2015,2039,10398,"3,154.78",Kaizen Consultants,2161,Executive Director Of Finance,Postage Other,4402,,
http://statistics.data.gov.uk/id/local-authority/47UB,Bromsgrove District Council,10/07/2015,2040,10400,"4,954.56",Kaizen Consultants,2161,Executive Director Of Finance,Postage Other,4402,,
http://statistics.data.gov.uk/id/local-authority/47UB,Bromsgrove District Council,10/07/2015,2041,10401,987.37,Kaizen Consultants,2161,Executive Director Of Finance,Postage Other,4402,,
http://statistics.data.gov.uk/id/local-authority/47UB,Bromsgrove District Council,24/07/2015,2473,8040023722,"30,828.00",Worcester City Council,2238,Management Costs,Wett Shared Service R/C,6113,,
http://statistics.data.gov.uk/id/local-authority/47UB,Bromsgrove District Council,10/07/2015,2600,824143575,"1,661.35",Severn Trent Water,2411,Executive Director And Deputy ,Water Charges,3450,,
http://statistics.data.gov.uk/id/local-authority/47UB,Bromsgrove District Council,17/07/2015,2926,INV252273,"5,516.00",Tpg Disable Aids,242,Capital Schemes Community,Disabled Facilities Grant,8701,,
http://statistics.data.gov.uk/id/local-authority/47UB,Bromsgrove District Council,17/07/2015,2462,DE10875635,287.32,Dennis Eagle Ltd,250,Bdc Balance Sheet,Received Not Invoiced,2096,,
http://statistics.data.gov.uk/id/local-authority/47UB,Bromsgrove District Council,17/07/2015,2462,DE10875635,0.00,Dennis Eagle Ltd,250,Bdc Balance Sheet,Cbs - Stores Account,1210,,
http://statistics.data.gov.uk/id/local-authority/47UB,Bromsgrove District Council,17/07/2015,2462,DE10875635,-1.20,Dennis Eagle Ltd,250,Bdc Balance Sheet,Stock Variance,1203,,
http://statistics.data.gov.uk/id/local-authority/47UB,Bromsgrove District Council,17/07/2015,2462,DE10875635,301.90,Dennis Eagle Ltd,250,Bdc Balance Sheet,Received Not Invoiced,2096,,
http://statistics.data.gov.uk/id/local-authority/47UB,Bromsgrove District Council,17/07/2015,2462,DE10875635,0.00,Dennis Eagle Ltd,250,Bdc Balance Sheet,Cbs - Stores Account,1210,,
http://statistics.data.gov.uk/id/local-authority/47UB,Bromsgrove District Council,17/07/2015,2782,DE10880523,436.14,Dennis Eagle Ltd,250,Executive Director And Deputy ,Vehicle Repairs/Maint'Ce,3757,,
http://statistics.data.gov.uk/id/local-authority/47UB,Bromsgrove District Council,17/07/2015,2783,DE10880524,40.44,Dennis Eagle Ltd,250,Bdc Balance Sheet,Received Not Invoiced,2096,,
http://statistics.data.gov.uk/id/local-authority/47UB,Bromsgrove District Council,17/07/2015,2783,DE10880524,0.00,Dennis Eagle Ltd,250,Bdc Balance Sheet,Cbs - Stores Account,1210,,
http://statistics.data.gov.uk/id/local-authority/47UB,Bromsgrove District Council,17/07/2015,2783,DE10880524,-0.01,Dennis Eagle Ltd,250,Bdc Balance Sheet,Stock Variance,1203,,
http://statistics.data.gov.uk/id/local-authority/47UB,Bromsgrove District Council,17/07/2015,2783,DE10880524,201.68,Dennis Eagle Ltd,250,Bdc Balance Sheet,Received Not Invoiced,2096,,
http://statistics.data.gov.uk/id/local-authority/47UB,Bromsgrove District Council,17/07/2015,2783,DE10880524,0.00,Dennis Eagle Ltd,250,Bdc Balance Sheet,Cbs - Stores Account,1210,,
http://statistics.data.gov.uk/id/local-authority/47UB,Bromsgrove District Council,17/07/2015,2783,DE10880524,233.24,Dennis Eagle Ltd,250,Bdc Balance Sheet,Received Not Invoiced,2096,,
http://statistics.data.gov.uk/id/local-authority/47UB,Bromsgrove District Council,17/07/2015,2783,DE10880524,0.00,Dennis Eagle Ltd,250,Bdc Balance Sheet,Cbs - Stores Account,1210,,
http://statistics.data.gov.uk/id/local-authority/47UB,Bromsgrove District Council,17/07/2015,2783,DE10880524,51.18,Dennis Eagle Ltd,250,Bdc Balance Sheet,Received Not Invoiced,2096,,
http://statistics.data.gov.uk/id/local-authority/47UB,Bromsgrove District Council,17/07/2015,2783,DE10880524,0.00,Dennis Eagle Ltd,250,Bdc Balance Sheet,Cbs - Stores Account,1210,,
http://statistics.data.gov.uk/id/local-authority/47UB,Bromsgrove District Council,24/07/2015,3001,11425,"3,300.00",Cooper Mobile Services Limited,2549,Executive Director And Deputy ,Contract Hire Of Vehicles,3761,,
http://statistics.data.gov.uk/id/local-authority/47UB,Bromsgrove District Council,10/07/2015,2384,C/1297,"1,600.00",Trevor Roberts Associates,2569,Executive Director Of Finance,Training,3043,,
http://statistics.data.gov.uk/id/local-authority/47UB,Bromsgrove District Council,31/07/2015,2488,16734,"13,032.79",The Association Of Electoral Administrators,2710,Executive Director Of Finance,Agency Staff,3020,,
http://statistics.data.gov.uk/id/local-authority/47UB,Bromsgrove District Council,31/07/2015,3034,16889,452.00,The Association Of Electoral Administrators,2710,Executive Director Of Finance,Elections Ier / Psn,2759,,
http://statistics.data.gov.uk/id/local-authority/47UB,Bromsgrove District Council,17/07/2015,2924,50784,"4,025.00",Liftability Limited,272,Capital Schemes Community,Disabled Facilities Grant,8701,,
http://statistics.data.gov.uk/id/local-authority/47UB,Bromsgrove District Council,17/07/2015,2925,51336,"3,950.00",Liftability Limited,272,Capital Schemes Community,Disabled Facilities Grant,8701,,
http://statistics.data.gov.uk/id/local-authority/47UB,Bromsgrove District Council,24/07/2015,3038,51064,"4,350.00",Liftability Limited,272,Capital Schemes Community,Disabled Facilities Grant,8701,,
http://statistics.data.gov.uk/id/local-authority/47UB,Bromsgrove District Council,10/07/2015,2596,DI5J60078,"6,500.00",Lexis Nexis Uk,273,Trading Standards / Animal Hea,Subscriptions,4650,,
http://statistics.data.gov.uk/id/local-authority/47UB,Bromsgrove District Council,31/07/2015,2457,2413216,"4,308.00",Insight Direct Uk Ltd,2755,Business Transformation,Software Maintenance,4503,,
http://statistics.data.gov.uk/id/local-authority/47UB,Bromsgrove District Council,31/07/2015,2457,2413216,"7,896.32",Insight Direct Uk Ltd,2755,Business Transformation,Software Maintenance,4503,,
http://statistics.data.gov.uk/id/local-authority/47UB,Bromsgrove District Council,31/07/2015,2618,2437441,"4,308.00",Insight Direct Uk Ltd,2755,Business Transformation,Software Maintenance,4503,,
http://statistics.data.gov.uk/id/local-authority/47UB,Bromsgrove District Council,31/07/2015,2618,2437441,"7,912.24",Insight Direct Uk Ltd,2755,Business Transformation,Software Maintenance,4503,,
http://statistics.data.gov.uk/id/local-authority/47UB,Bromsgrove District Council,10/07/2015,2767,0765/0125466,527.56,Jewson Ltd,300,Bdc Balance Sheet,Received Not Invoiced,2096,,
http://statistics.data.gov.uk/id/local-authority/47UB,Bromsgrove District Council,10/07/2015,2767,0765/0125466,0.00,Jewson Ltd,300,Bdc Balance Sheet,Cbs - Stores Account,1210,,
http://statistics.data.gov.uk/id/local-authority/47UB,Bromsgrove District Council,31/07/2015,1353,964848917,497.70,Office Depot (Uk) Ltd,3098,Executive Director Of Finance,Election Costs,4207,,
http://statistics.data.gov.uk/id/local-authority/47UB,Bromsgrove District Council,24/07/2015,2807,81397803,106.32,Office Depot (Uk) Ltd,3098,Executive Director And Deputy ,Office Consumables,4304,,
http://statistics.data.gov.uk/id/local-authority/47UB,Bromsgrove District Council,24/07/2015,2807,81397803,415.89,Office Depot (Uk) Ltd,3098,Executive Director And Deputy ,Office Consumables,4304,,
http://statistics.data.gov.uk/id/local-authority/47UB,Bromsgrove District Council,24/07/2015,2807,81397803,6.91,Office Depot (Uk) Ltd,3098,Executive Director Planning,Office Consumables,4304,,
http://statistics.data.gov.uk/id/local-authority/47UB,Bromsgrove District Council,24/07/2015,3040,163,"3,092.30",Iso Property Developments,3154,Capital Schemes Community,Disabled Facilities Grant,8701,,
http://statistics.data.gov.uk/id/local-authority/47UB,Bromsgrove District Council,31/07/2015,2757,A9980108790,81.42,Ats Euromaster Ltd,3306,Executive Director And Deputy ,Tyres,3753,,
http://statistics.data.gov.uk/id/local-authority/47UB,Bromsgrove District Council,31/07/2015,2757,A9980108790,71.58,Ats Euromaster Ltd,3306,Executive Director And Deputy ,Tyres,3753,,
http://statistics.data.gov.uk/id/local-authority/47UB,Bromsgrove District Council,31/07/2015,2757,A9980108790,31.00,Ats Euromaster Ltd,3306,Executive Director And Deputy ,Tyres,3753,,
http://statistics.data.gov.uk/id/local-authority/47UB,Bromsgrove District Council,31/07/2015,2757,A9980108790,112.63,Ats Euromaster Ltd,3306,Executive Director And Deputy ,Tyres,3753,,
http://statistics.data.gov.uk/id/local-authority/47UB,Bromsgrove District Council,31/07/2015,2757,A9980108790,208.45,Ats Euromaster Ltd,3306,Executive Director And Deputy ,Tyres,3753,,
http://statistics.data.gov.uk/id/local-authority/47UB,Bromsgrove District Council,31/07/2015,2757,A9980108790,81.42,Ats Euromaster Ltd,3306,Executive Director And Deputy ,Tyres,3753,,
http://statistics.data.gov.uk/id/local-authority/47UB,Bromsgrove District Council,31/07/2015,2757,A9980108790,376.50,Ats Euromaster Ltd,3306,Executive Director And Deputy ,Tyres,3753,,
http://statistics.data.gov.uk/id/local-authority/47UB,Bromsgrove District Council,31/07/2015,2757,A9980108790,172.14,Ats Euromaster Ltd,3306,Bdc Reg Client,Tyres,3753,,
http://statistics.data.gov.uk/id/local-authority/47UB,Bromsgrove District Council,31/07/2015,2757,A9980108790,60.52,Ats Euromaster Ltd,3306,Executive Director And Deputy ,Tyres,3753,,
http://statistics.data.gov.uk/id/local-authority/47UB,Bromsgrove District Council,31/07/2015,2757,A9980108790,21.08,Ats Euromaster Ltd,3306,Executive Director And Deputy ,Tyres,3753,,
http://statistics.data.gov.uk/id/local-authority/47UB,Bromsgrove District Council,31/07/2015,2757,A9980108790,42.16,Ats Euromaster Ltd,3306,Executive Director And Deputy ,Tyres,3753,,
http://statistics.data.gov.uk/id/local-authority/47UB,Bromsgrove District Council,31/07/2015,2757,A9980108790,40.00,Ats Euromaster Ltd,3306,Executive Director And Deputy ,Tyres,3753,,
http://statistics.data.gov.uk/id/local-authority/47UB,Bromsgrove District Council,31/07/2015,2757,A9980108790,376.50,Ats Euromaster Ltd,3306,Executive Director And Deputy ,Tyres,3753,,
http://statistics.data.gov.uk/id/local-authority/47UB,Bromsgrove District Council,31/07/2015,2757,A9980108790,218.94,Ats Euromaster Ltd,3306,Executive Director And Deputy ,Tyres,3753,,
http://statistics.data.gov.uk/id/local-authority/47UB,Bromsgrove District Council,31/07/2015,2757,A9980108790,74.96,Ats Euromaster Ltd,3306,Executive Director And Deputy ,Tyres,3753,,
http://statistics.data.gov.uk/id/local-authority/47UB,Bromsgrove District Council,31/07/2015,2757,A9980108790,89.23,Ats Euromaster Ltd,3306,Executive Director And Deputy ,Tyres,3753,,
http://statistics.data.gov.uk/id/local-authority/47UB,Bromsgrove District Council,31/07/2015,2757,A9980108790,110.39,Ats Euromaster Ltd,3306,Executive Director And Deputy ,Tyres,3753,,
http://statistics.data.gov.uk/id/local-authority/47UB,Bromsgrove District Council,31/07/2015,2757,A9980108790,124.67,Ats Euromaster Ltd,3306,Executive Director And Deputy ,Tyres,3753,,
http://statistics.data.gov.uk/id/local-authority/47UB,Bromsgrove District Council,24/07/2015,2909,324539,819.00,Scarab Sweepers Limited,342,Bdc Balance Sheet,Received Not Invoiced,2096,,
http://statistics.data.gov.uk/id/local-authority/47UB,Bromsgrove District Council,24/07/2015,2909,324539,0.00,Scarab Sweepers Limited,342,Bdc Balance Sheet,Cbs - Stores Account,1210,,
http://statistics.data.gov.uk/id/local-authority/47UB,Bromsgrove District Council,10/07/2015,2138,UKIN11439,"2,692.57",Cutter Project,34827,Business Transformation,Software Maintenance,4503,,
http://statistics.data.gov.uk/id/local-authority/47UB,Bromsgrove District Council,10/07/2015,2138,UKIN11439,"2,692.56",Cutter Project,34827,Business Transformation,Software Maintenance,4503,,
http://statistics.data.gov.uk/id/local-authority/47UB,Bromsgrove District Council,31/07/2015,2880,1353847097,7.00,Mitchell Diesel Ltd,34878,Executive Director And Deputy ,Postage Other,4402,,
http://statistics.data.gov.uk/id/local-authority/47UB,Bromsgrove District Council,31/07/2015,2880,1353847097,677.50,Mitchell Diesel Ltd,34878,Executive Director And Deputy ,Vehicle Repairs/Maint'Ce,3757,,
http://statistics.data.gov.uk/id/local-authority/47UB,Bromsgrove District Council,31/07/2015,2603,ERS2015_0470,370.57,Electoral Reform Services,34885,Executive Director Of Finance,Election Costs,4207,,
http://statistics.data.gov.uk/id/local-authority/47UB,Bromsgrove District Council,31/07/2015,2603,ERS2015_0470,370.57,Electoral Reform Services,34885,Executive Director Of Finance,Election Costs,4207,,
http://statistics.data.gov.uk/id/local-authority/47UB,Bromsgrove District Council,17/07/2015,2721,ERS2015_0263,887.94,Electoral Reform Services,34885,Executive Director Of Finance,Elections Ier / Psn,2759,,
http://statistics.data.gov.uk/id/local-authority/47UB,Bromsgrove District Council,17/07/2015,2721,ERS2015_0263,887.94,Electoral Reform Services,34885,Executive Director Of Finance,Elections Ier / Psn,2759,,
http://statistics.data.gov.uk/id/local-authority/47UB,Bromsgrove District Council,17/07/2015,2521,18149,"1,150.00",C R Macdonald Ltd,34903,Technical Pollution,Contractors,5158,,
http://statistics.data.gov.uk/id/local-authority/47UB,Bromsgrove District Council,17/07/2015,2164,01438776,590.00,Bevan Brittan Llp,34968,Executive Director Of Finance,Professional Fees,4352,,
http://statistics.data.gov.uk/id/local-authority/47UB,Bromsgrove District Council,24/07/2015,2153,185311,"1,237.60",Osborne Richardson,34969,Core Environmental Health,Agency Staff,3020,,
http://statistics.data.gov.uk/id/local-authority/47UB,Bromsgrove District Council,10/07/2015,158,81231,541.40,Farid Municipal Vehicles Ltd.,34971,Executive Director And Deputy ,Vehicle Repairs/Maint'Ce,3757,,
http://statistics.data.gov.uk/id/local-authority/47UB,Bromsgrove District Council,24/07/2015,2347,CLE095,588.00,Am & Pm Cleaning Solutions,35039,Executive Director And Deputy ,Consumable Cleaning Materials,3605,,
http://statistics.data.gov.uk/id/local-authority/47UB,Bromsgrove District Council,24/07/2015,3004,CLE097,616.00,Am & Pm Cleaning Solutions,35039,Executive Director And Deputy ,Consumable Cleaning Materials,3605,,
http://statistics.data.gov.uk/id/local-authority/47UB,Bromsgrove District Council,24/07/2015,2779,0004,570.55,Jarvis & Parsons Veterinary Services Ltd,35050,Technical Pollution,Contractors,5158,,
http://statistics.data.gov.uk/id/local-authority/47UB,Bromsgrove District Council,24/07/2015,2983,0003,"1,007.27",Jarvis & Parsons Veterinary Services Ltd,35050,Technical Pollution,Contractors,5158,,
http://statistics.data.gov.uk/id/local-authority/47UB,Bromsgrove District Council,24/07/2015,2733,38251,"1,650.00",Oil Inventions Ltd,35062,Bdc Balance Sheet,Received Not Invoiced,2096,,
http://statistics.data.gov.uk/id/local-authority/47UB,Bromsgrove District Council,24/07/2015,2733,38251,0.00,Oil Inventions Ltd,35062,Bdc Balance Sheet,Cbs - Stores Account,1210,,
http://statistics.data.gov.uk/id/local-authority/47UB,Bromsgrove District Council,31/07/2015,2995,10115868,"1,080.00",Warwicks County Council Trading Standard,35115,Trading Standards / Animal Hea,Subscriptions,4650,,
http://statistics.data.gov.uk/id/local-authority/47UB,Bromsgrove District Council,24/07/2015,2928,3019,"1,252.77",Goodwells Ltd,35142,Capital Schemes Community,Disabled Facilities Grant,8701,,
http://statistics.data.gov.uk/id/local-authority/47UB,Bromsgrove District Council,24/07/2015,2434,22160,"1,054.50",Kenyon Block Consultants,35198,Trading Standards / Animal Hea,Agency Staff,3020,,
http://statistics.data.gov.uk/id/local-authority/47UB,Bromsgrove District Council,10/07/2015,2439,22060,"1,369.00",Kenyon Block Consultants,35198,Trading Standards / Animal Hea,Agency Staff,3020,,
http://statistics.data.gov.uk/id/local-authority/47UB,Bromsgrove District Council,17/07/2015,2519,22335,"1,369.00",Kenyon Block Consultants,35198,Trading Standards / Animal Hea,Agency Staff,3020,,
http://statistics.data.gov.uk/id/local-authority/47UB,Bromsgrove District Council,17/07/2015,2627,22376,"1,147.00",Kenyon Block Consultants,35198,Trading Standards / Animal Hea,Agency Staff,3020,,
http://statistics.data.gov.uk/id/local-authority/47UB,Bromsgrove District Council,24/07/2015,2794,22457,"1,369.00",Kenyon Block Consultants,35198,Trading Standards / Animal Hea,Agency Staff,3020,,
http://statistics.data.gov.uk/id/local-authority/47UB,Bromsgrove District Council,31/07/2015,2885,22541,"1,369.00",Kenyon Block Consultants,35198,Trading Standards / Animal Hea,Agency Staff,3020,,
http://statistics.data.gov.uk/id/local-authority/47UB,Bromsgrove District Council,10/07/2015,2802,115409343/15,902.93,Total Gas & Power,35200,Executive Director And Deputy ,Gas,3301,,
http://statistics.data.gov.uk/id/local-authority/47UB,Bromsgrove District Council,10/07/2015,2803,115409354,"2,103.61",Total Gas & Power,35200,Executive Director And Deputy ,Gas,3301,,
http://statistics.data.gov.uk/id/local-authority/47UB,Bromsgrove District Council,31/07/2015,3266,116749990/15,847.84,Total Gas & Power,35200,Executive Director And Deputy ,Gas,3301,,
http://statistics.data.gov.uk/id/local-authority/47UB,Bromsgrove District Council,31/07/2015,3267,116749980/15,474.49,Total Gas & Power,35200,Executive Director And Deputy ,Gas,3301,,
http://statistics.data.gov.uk/id/local-authority/47UB,Bromsgrove District Council,10/07/2015,2007,112089,"1,180.00",Hinton Pest Control Limited,35203,Technical Pollution,Contractors,5158,,
http://statistics.data.gov.uk/id/local-authority/47UB,Bromsgrove District Council,24/07/2015,2760,112127,"1,595.00",Hinton Pest Control Limited,35203,Technical Pollution,Contractors,5158,,
http://statistics.data.gov.uk/id/local-authority/47UB,Bromsgrove District Council,24/07/2015,2897,201,832.00,Pet Central Hotel (Kennels) Ltd,35205,Technical Pollution,Contractors,5158,,
http://statistics.data.gov.uk/id/local-authority/47UB,Bromsgrove District Council,24/07/2015,2762,1066,"10,609.59",Valeur Consulting Ltd,35209,Business Transformation,Training,3043,,
http://statistics.data.gov.uk/id/local-authority/47UB,Bromsgrove District Council,24/07/2015,2737,0063062136,11.64,Cromwell Tools,35214,Bdc Balance Sheet,Received Not Invoiced,2096,,
http://statistics.data.gov.uk/id/local-authority/47UB,Bromsgrove District Council,24/07/2015,2737,0063062136,0.00,Cromwell Tools,35214,Bdc Balance Sheet,Cbs - Stores Account,1210,,
http://statistics.data.gov.uk/id/local-authority/47UB,Bromsgrove District Council,24/07/2015,2737,0063062136,23.22,Cromwell Tools,35214,Bdc Balance Sheet,Received Not Invoiced,2096,,
http://statistics.data.gov.uk/id/local-authority/47UB,Bromsgrove District Council,24/07/2015,2737,0063062136,0.00,Cromwell Tools,35214,Bdc Balance Sheet,Cbs - Stores Account,1210,,
http://statistics.data.gov.uk/id/local-authority/47UB,Bromsgrove District Council,24/07/2015,2737,0063062136,11.98,Cromwell Tools,35214,Bdc Balance Sheet,Received Not Invoiced,2096,,
http://statistics.data.gov.uk/id/local-authority/47UB,Bromsgrove District Council,24/07/2015,2737,0063062136,0.00,Cromwell Tools,35214,Bdc Balance Sheet,Cbs - Stores Account,1210,,
http://statistics.data.gov.uk/id/local-authority/47UB,Bromsgrove District Council,24/07/2015,2737,0063062136,23.38,Cromwell Tools,35214,Bdc Balance Sheet,Received Not Invoiced,2096,,
http://statistics.data.gov.uk/id/local-authority/47UB,Bromsgrove District Council,24/07/2015,2737,0063062136,0.00,Cromwell Tools,35214,Bdc Balance Sheet,Cbs - Stores Account,1210,,
http://statistics.data.gov.uk/id/local-authority/47UB,Bromsgrove District Council,24/07/2015,2737,0063062136,47.78,Cromwell Tools,35214,Bdc Balance Sheet,Received Not Invoiced,2096,,
http://statistics.data.gov.uk/id/local-authority/47UB,Bromsgrove District Council,24/07/2015,2737,0063062136,0.00,Cromwell Tools,35214,Bdc Balance Sheet,Cbs - Stores Account,1210,,
http://statistics.data.gov.uk/id/local-authority/47UB,Bromsgrove District Council,24/07/2015,2737,0063062136,49.18,Cromwell Tools,35214,Bdc Balance Sheet,Received Not Invoiced,2096,,
http://statistics.data.gov.uk/id/local-authority/47UB,Bromsgrove District Council,24/07/2015,2737,0063062136,0.00,Cromwell Tools,35214,Bdc Balance Sheet,Cbs - Stores Account,1210,,
http://statistics.data.gov.uk/id/local-authority/47UB,Bromsgrove District Council,24/07/2015,2737,0063062136,26.92,Cromwell Tools,35214,Bdc Balance Sheet,Received Not Invoiced,2096,,
http://statistics.data.gov.uk/id/local-authority/47UB,Bromsgrove District Council,24/07/2015,2737,0063062136,0.00,Cromwell Tools,35214,Bdc Balance Sheet,Cbs - Stores Account,1210,,
http://statistics.data.gov.uk/id/local-authority/47UB,Bromsgrove District Council,24/07/2015,2737,0063062136,286.56,Cromwell Tools,35214,Bdc Balance Sheet,Received Not Invoiced,2096,,
http://statistics.data.gov.uk/id/local-authority/47UB,Bromsgrove District Council,24/07/2015,2737,0063062136,0.00,Cromwell Tools,35214,Bdc Balance Sheet,Cbs - Stores Account,1210,,
http://statistics.data.gov.uk/id/local-authority/47UB,Bromsgrove District Council,24/07/2015,2737,0063062136,286.56,Cromwell Tools,35214,Bdc Balance Sheet,Received Not Invoiced,2096,,
http://statistics.data.gov.uk/id/local-authority/47UB,Bromsgrove District Council,24/07/2015,2737,0063062136,0.00,Cromwell Tools,35214,Bdc Balance Sheet,Cbs - Stores Account,1210,,
http://statistics.data.gov.uk/id/local-authority/47UB,Bromsgrove District Council,24/07/2015,2737,0063062136,94.80,Cromwell Tools,35214,Bdc Balance Sheet,Received Not Invoiced,2096,,
http://statistics.data.gov.uk/id/local-authority/47UB,Bromsgrove District Council,24/07/2015,2737,0063062136,0.00,Cromwell Tools,35214,Bdc Balance Sheet,Cbs - Stores Account,1210,,
http://statistics.data.gov.uk/id/local-authority/47UB,Bromsgrove District Council,24/07/2015,2737,0063062136,94.80,Cromwell Tools,35214,Bdc Balance Sheet,Received Not Invoiced,2096,,
http://statistics.data.gov.uk/id/local-authority/47UB,Bromsgrove District Council,24/07/2015,2737,0063062136,0.00,Cromwell Tools,35214,Bdc Balance Sheet,Cbs - Stores Account,1210,,
http://statistics.data.gov.uk/id/local-authority/47UB,Bromsgrove District Council,24/07/2015,2737,0063062136,94.80,Cromwell Tools,35214,Bdc Balance Sheet,Received Not Invoiced,2096,,
http://statistics.data.gov.uk/id/local-authority/47UB,Bromsgrove District Council,24/07/2015,2737,0063062136,0.00,Cromwell Tools,35214,Bdc Balance Sheet,Cbs - Stores Account,1210,,
http://statistics.data.gov.uk/id/local-authority/47UB,Bromsgrove District Council,17/07/2015,2234,00600015618,677.50,Somerset County Council,35289,Technical Pollution,Materials,4170,,
http://statistics.data.gov.uk/id/local-authority/47UB,Bromsgrove District Council,24/07/2015,1821,4454,"1,200.00",Prestige Systems Ltd.,35362,Business Transformation,Computer Consumables,4500,,
http://statistics.data.gov.uk/id/local-authority/47UB,Bromsgrove District Council,24/07/2015,1821,4454,"1,200.00",Prestige Systems Ltd.,35362,Business Transformation,Computer Consumables,4500,,
http://statistics.data.gov.uk/id/local-authority/47UB,Bromsgrove District Council,17/07/2015,2513,4495,"5,000.00",Prestige Systems Ltd.,35362,Capital Schemes Planning And R,Contract Payments,8131,,
http://statistics.data.gov.uk/id/local-authority/47UB,Bromsgrove District Council,17/07/2015,2614,4505,"2,795.00",Prestige Systems Ltd.,35362,Business Transformation,Computer Equipment,4506,,
http://statistics.data.gov.uk/id/local-authority/47UB,Bromsgrove District Council,24/07/2015,2708,WRS/0094,"7,423.56",Dave Shaw Dog Training,35363,Technical Pollution,Contractors,5158,,
http://statistics.data.gov.uk/id/local-authority/47UB,Bromsgrove District Council,24/07/2015,2708,WRS/0094,0.00,Dave Shaw Dog Training,35363,Technical Pollution,Contractors,5158,,
http://statistics.data.gov.uk/id/local-authority/47UB,Bromsgrove District Council,17/07/2015,2459,KPC000000140,"1,358.00",Kidderminster Pest Control Ltd,35369,Technical Pollution,Contractors,5158,,
http://statistics.data.gov.uk/id/local-authority/47UB,Bromsgrove District Council,17/07/2015,2460,KPC000000139,778.00,Kidderminster Pest Control Ltd,35369,Technical Pollution,Contractors,5158,,
http://statistics.data.gov.uk/id/local-authority/47UB,Bromsgrove District Council,31/07/2015,3203,2015-1286,"3,000.00",Novotronix Ltd,35380,Business Transformation,Network Maintenance,4505,,
http://statistics.data.gov.uk/id/local-authority/47UB,Bromsgrove District Council,31/07/2015,3268,BDC JULY 15 DED,700.72,The Labour Party,35387,Bdc Balance Sheet,Payroll Deductions,1488,,
http://statistics.data.gov.uk/id/local-authority/47UB,Bromsgrove District Council,24/07/2015,2456,INV10418,505.31,Vehicle Weighing Solution Ltd,35405,Executive Director And Deputy ,Materials,4170,,
http://statistics.data.gov.uk/id/local-authority/47UB,Bromsgrove District Council,24/07/2015,2881,INV10618,427.00,Vehicle Weighing Solution Ltd,35405,Executive Director And Deputy ,Materials,4170,,
http://statistics.data.gov.uk/id/local-authority/47UB,Bromsgrove District Council,17/07/2015,2516,4000009447,701.25,Realvnc Ltd,35472,Business Transformation,Software Maintenance,4503,,
http://statistics.data.gov.uk/id/local-authority/47UB,Bromsgrove District Council,17/07/2015,2516,4000009447,701.25,Realvnc Ltd,35472,Business Transformation,Software Maintenance,4503,,
http://statistics.data.gov.uk/id/local-authority/47UB,Bromsgrove District Council,17/07/2015,2752,4956011,718.85,Daisy Communications,35521,Business Transformation,Telephone Calls,4452,,
http://statistics.data.gov.uk/id/local-authority/47UB,Bromsgrove District Council,24/07/2015,2898,12024,919.35,Price Planning Associates,35533,Executive Director Planning,Consultants Fees,4351,,
http://statistics.data.gov.uk/id/local-authority/47UB,Bromsgrove District Council,31/07/2015,3011,12019,998.00,Price Planning Associates,35533,Executive Director Planning,Agency Staff,3020,,
http://statistics.data.gov.uk/id/local-authority/47UB,Bromsgrove District Council,17/07/2015,2720,322274,"1,687.00",Dudley Metropolitan Borough Council,35534,Executive Director Planning,Training,3043,,
http://statistics.data.gov.uk/id/local-authority/47UB,Bromsgrove District Council,31/07/2015,2895,166,874.00,Worcestershire Animal Rescue Shelter,35536,Technical Pollution,Contractors,5158,,
http://statistics.data.gov.uk/id/local-authority/47UB,Bromsgrove District Council,24/07/2015,2698,1732,498.96,L8 Solutions Ltd,35550,Business Transformation,Software Maintenance,4503,,
http://statistics.data.gov.uk/id/local-authority/47UB,Bromsgrove District Council,24/07/2015,2698,1732,498.96,L8 Solutions Ltd,35550,Business Transformation,Software Maintenance,4503,,
http://statistics.data.gov.uk/id/local-authority/47UB,Bromsgrove District Council,24/07/2015,2728,8257,780.00,M D Carpentry & Building Contractors Ltd,35592,Executive Director And Deputy ,Contractors,5158,,
http://statistics.data.gov.uk/id/local-authority/47UB,Bromsgrove District Council,17/07/2015,2453,0000358039,208.88,Comms Express Ltd,35606,Business Transformation,Computer Consumables,4500,,
http://statistics.data.gov.uk/id/local-authority/47UB,Bromsgrove District Council,17/07/2015,2453,0000358039,208.88,Comms Express Ltd,35606,Business Transformation,Computer Consumables,4500,,
http://statistics.data.gov.uk/id/local-authority/47UB,Bromsgrove District Council,17/07/2015,2893,6330043,500.00,Landmark Information Group,35632,Technical Pollution,Software Licences,4501,,
http://statistics.data.gov.uk/id/local-authority/47UB,Bromsgrove District Council,31/07/2015,2987,30/06/2015,900.00,A-Z Skips Ltd,35634,Executive Director And Deputy ,Materials,4170,,
http://statistics.data.gov.uk/id/local-authority/47UB,Bromsgrove District Council,10/07/2015,2436,16938,"1,781.45",Vip-System Ltd,35686,Licensing,Office Equipment Purchase,4000,,
http://statistics.data.gov.uk/id/local-authority/47UB,Bromsgrove District Council,17/07/2015,2693,16999,422.98,Vip-System Ltd,35686,Licensing,Office Equipment Purchase,4000,,
http://statistics.data.gov.uk/id/local-authority/47UB,Bromsgrove District Council,31/07/2015,2241,5(33),"3,682.00",Red Kite Pest Control,35698,Technical Pollution,Contractors,5158,,
http://statistics.data.gov.uk/id/local-authority/47UB,Bromsgrove District Council,31/07/2015,2905,UK80029,578.00,Parkeon Ltd,35768,Executive Director And Deputy ,Materials,4170,,
http://statistics.data.gov.uk/id/local-authority/47UB,Bromsgrove District Council,31/07/2015,2905,UK80029,15.00,Parkeon Ltd,35768,Executive Director And Deputy ,Postage Other,4402,,
http://statistics.data.gov.uk/id/local-authority/47UB,Bromsgrove District Council,17/07/2015,2385,380109,450.00,Kingfisher Limited Partnership,35774,Licensing,Contractors,5158,,
http://statistics.data.gov.uk/id/local-authority/47UB,Bromsgrove District Council,17/07/2015,2623,79685,"3,024.00",Mason & Jones Group,35833,Bdc Balance Sheet,Received Not Invoiced,2096,,
http://statistics.data.gov.uk/id/local-authority/47UB,Bromsgrove District Council,17/07/2015,2623,79685,0.00,Mason & Jones Group,35833,Bdc Balance Sheet,Cbs - Stores Account,1210,,
http://statistics.data.gov.uk/id/local-authority/47UB,Bromsgrove District Council,31/07/2015,2766,305228,450.00,Solar Communications Ltd,35834,Business Transformation,Telephone Rental,4451,,
http://statistics.data.gov.uk/id/local-authority/47UB,Bromsgrove District Council,31/07/2015,2330,HA-1/2015-2016,"10,174.00",Bromsgrove & District C.A.B,35836,Executive Director And Deputy ,Contractors,5158,,
http://statistics.data.gov.uk/id/local-authority/47UB,Bromsgrove District Council,31/07/2015,2331,FC1/2015-2016,"4,400.00",Bromsgrove & District C.A.B,35836,Executive Director And Deputy ,Grants,4660,,
http://statistics.data.gov.uk/id/local-authority/47UB,Bromsgrove District Council,31/07/2015,2332,CS1-2015/2016,"40,329.30",Bromsgrove & District C.A.B,35836,Chief Executive,Grants,4660,,
http://statistics.data.gov.uk/id/local-authority/47UB,Bromsgrove District Council,24/07/2015,2927,4191,"2,507.86",Longlife Buildings Limited,35847,Capital Schemes Community,Disabled Facilities Grant,8701,,
http://statistics.data.gov.uk/id/local-authority/47UB,Bromsgrove District Council,10/07/2015,2773,9167,"1,687.50",Halarose,35852,Executive Director Of Finance,Election Costs,4207,,
http://statistics.data.gov.uk/id/local-authority/47UB,Bromsgrove District Council,10/07/2015,2773,9167,843.75,Halarose,35852,Executive Director Of Finance,Election Costs,4207,,
http://statistics.data.gov.uk/id/local-authority/47UB,Bromsgrove District Council,10/07/2015,2773,9167,843.75,Halarose,35852,Executive Director Of Finance,Election Costs,4207,,
http://statistics.data.gov.uk/id/local-authority/47UB,Bromsgrove District Council,10/07/2015,1402,ZDB0022064,"1,306.52",Marshalls Mono Ltd,35902,Capital Schemes Planning And R,Other Contract Payments,8155,,
http://statistics.data.gov.uk/id/local-authority/47UB,Bromsgrove District Council,10/07/2015,699,ZDB0021615,"1,506.52",Marshalls Mono Ltd,35902,Capital Schemes Planning And R,Other Contract Payments,8155,,
http://statistics.data.gov.uk/id/local-authority/47UB,Bromsgrove District Council,17/07/2015,2375,13305,"4,512.00",E.J.S Roofing,36020,Capital Schemes Community,Discretionary Grants,8160,,
http://statistics.data.gov.uk/id/local-authority/47UB,Bromsgrove District Council,10/07/2015,2430,32054/0615065,"39,000.00",Mace Group,36065,Capital Schemes Culture & Leis,Other Contract Payments,8155,,
http://statistics.data.gov.uk/id/local-authority/47UB,Bromsgrove District Council,31/07/2015,146,112,"2,250.00",Bridgehouse Property Consultants Ltd,36092,Executive Director Planning,Consultants Fees,4351,,
http://statistics.data.gov.uk/id/local-authority/47UB,Bromsgrove District Council,17/07/2015,2819,01197228132,41.00,E E Limited,3656,Business Transformation,Mobile Phone,4455,,
http://statistics.data.gov.uk/id/local-authority/47UB,Bromsgrove District Council,17/07/2015,2819,01197228132,10.50,E E Limited,3656,Business Transformation,Mobile Phone,4455,,
http://statistics.data.gov.uk/id/local-authority/47UB,Bromsgrove District Council,17/07/2015,2819,01197228132,26.00,E E Limited,3656,Business Transformation,Mobile Phone,4455,,
http://statistics.data.gov.uk/id/local-authority/47UB,Bromsgrove District Council,17/07/2015,2819,01197228132,16.00,E E Limited,3656,Business Transformation,Mobile Phone,4455,,
http://statistics.data.gov.uk/id/local-authority/47UB,Bromsgrove District Council,17/07/2015,2819,01197228132,16.00,E E Limited,3656,Chief Executive,Mobile Phone,4455,,
http://statistics.data.gov.uk/id/local-authority/47UB,Bromsgrove District Council,17/07/2015,2819,01197228132,98.10,E E Limited,3656,Chief Executive,Mobile Phone,4455,,
http://statistics.data.gov.uk/id/local-authority/47UB,Bromsgrove District Council,17/07/2015,2819,01197228132,48.00,E E Limited,3656,Chief Executive,Mobile Phone,4455,,
http://statistics.data.gov.uk/id/local-authority/47UB,Bromsgrove District Council,17/07/2015,2819,01197228132,328.29,E E Limited,3656,Core Environmental Health,Mobile Phone,4455,,
http://statistics.data.gov.uk/id/local-authority/47UB,Bromsgrove District Council,17/07/2015,2819,01197228132,16.00,E E Limited,3656,Env Pro - Geographic East,Mobile Phone,4455,,
http://statistics.data.gov.uk/id/local-authority/47UB,Bromsgrove District Council,17/07/2015,2819,01197228132,18.00,E E Limited,3656,Executive Director And Deputy ,Mobile Phone,4455,,
http://statistics.data.gov.uk/id/local-authority/47UB,Bromsgrove District Council,17/07/2015,2819,01197228132,3.13,E E Limited,3656,Executive Director And Deputy ,Mobile Phone,4455,,
http://statistics.data.gov.uk/id/local-authority/47UB,Bromsgrove District Council,17/07/2015,2819,01197228132,3.13,E E Limited,3656,Executive Director And Deputy ,Mobile Phone,4455,,
http://statistics.data.gov.uk/id/local-authority/47UB,Bromsgrove District Council,17/07/2015,2819,01197228132,3.00,E E Limited,3656,Executive Director And Deputy ,Mobile Phone,4455,,
http://statistics.data.gov.uk/id/local-authority/47UB,Bromsgrove District Council,17/07/2015,2819,01197228132,9.04,E E Limited,3656,Executive Director And Deputy ,Mobile Phone,4455,,
http://statistics.data.gov.uk/id/local-authority/47UB,Bromsgrove District Council,17/07/2015,2819,01197228132,3.00,E E Limited,3656,Executive Director And Deputy ,Mobile Phone,4455,,
http://statistics.data.gov.uk/id/local-authority/47UB,Bromsgrove District Council,17/07/2015,2819,01197228132,9.00,E E Limited,3656,Executive Director And Deputy ,Mobile Phone,4455,,
http://statistics.data.gov.uk/id/local-authority/47UB,Bromsgrove District Council,17/07/2015,2819,01197228132,6.00,E E Limited,3656,Executive Director And Deputy ,Mobile Phone,4455,,
http://statistics.data.gov.uk/id/local-authority/47UB,Bromsgrove District Council,17/07/2015,2819,01197228132,6.03,E E Limited,3656,Executive Director And Deputy ,Mobile Phone,4455,,
http://statistics.data.gov.uk/id/local-authority/47UB,Bromsgrove District Council,17/07/2015,2819,01197228132,44.00,E E Limited,3656,Executive Director And Deputy ,Mobile Phone,4455,,
http://statistics.data.gov.uk/id/local-authority/47UB,Bromsgrove District Council,17/07/2015,2819,01197228132,69.02,E E Limited,3656,Executive Director And Deputy ,Mobile Phone,4455,,
http://statistics.data.gov.uk/id/local-authority/47UB,Bromsgrove District Council,17/07/2015,2819,01197228132,33.01,E E Limited,3656,Executive Director And Deputy ,Mobile Phone,4455,,
http://statistics.data.gov.uk/id/local-authority/47UB,Bromsgrove District Council,17/07/2015,2819,01197228132,6.00,E E Limited,3656,Executive Director And Deputy ,Mobile Phone,4455,,
http://statistics.data.gov.uk/id/local-authority/47UB,Bromsgrove District Council,17/07/2015,2819,01197228132,72.00,E E Limited,3656,Executive Director And Deputy ,Mobile Phone,4455,,
http://statistics.data.gov.uk/id/local-authority/47UB,Bromsgrove District Council,17/07/2015,2819,01197228132,3.00,E E Limited,3656,Executive Director And Deputy ,Mobile Phone,4455,,
http://statistics.data.gov.uk/id/local-authority/47UB,Bromsgrove District Council,17/07/2015,2819,01197228132,12.00,E E Limited,3656,Executive Director And Deputy ,Mobile Phone,4455,,
http://statistics.data.gov.uk/id/local-authority/47UB,Bromsgrove District Council,17/07/2015,2819,01197228132,81.02,E E Limited,3656,Executive Director And Deputy ,Mobile Phone,4455,,
http://statistics.data.gov.uk/id/local-authority/47UB,Bromsgrove District Council,17/07/2015,2819,01197228132,6.00,E E Limited,3656,Executive Director And Deputy ,Mobile Phone,4455,,
http://statistics.data.gov.uk/id/local-authority/47UB,Bromsgrove District Council,17/07/2015,2819,01197228132,29.69,E E Limited,3656,Executive Director And Deputy ,Mobile Phone,4455,,
http://statistics.data.gov.uk/id/local-authority/47UB,Bromsgrove District Council,17/07/2015,2819,01197228132,3.00,E E Limited,3656,Executive Director Of Finance,Mobile Phone,4455,,
http://statistics.data.gov.uk/id/local-authority/47UB,Bromsgrove District Council,17/07/2015,2819,01197228132,16.00,E E Limited,3656,Executive Director Of Finance,Mobile Phone,4455,,
http://statistics.data.gov.uk/id/local-authority/47UB,Bromsgrove District Council,17/07/2015,2819,01197228132,3.00,E E Limited,3656,Executive Director Of Finance,Mobile Phone,4455,,
http://statistics.data.gov.uk/id/local-authority/47UB,Bromsgrove District Council,17/07/2015,2819,01197228132,12.50,E E Limited,3656,Executive Director Of Finance,Mobile Phone,4455,,
http://statistics.data.gov.uk/id/local-authority/47UB,Bromsgrove District Council,17/07/2015,2819,01197228132,12.50,E E Limited,3656,Executive Director Of Finance,Mobile Phone,4455,,
http://statistics.data.gov.uk/id/local-authority/47UB,Bromsgrove District Council,17/07/2015,2819,01197228132,351.29,E E Limited,3656,Executive Director Of Finance,Mobile Phone,4455,,
http://statistics.data.gov.uk/id/local-authority/47UB,Bromsgrove District Council,17/07/2015,2819,01197228132,146.63,E E Limited,3656,Executive Director Planning,Mobile Phone,4455,,
http://statistics.data.gov.uk/id/local-authority/47UB,Bromsgrove District Council,17/07/2015,2819,01197228132,28.00,E E Limited,3656,Executive Director Planning,Mobile Phone,4455,,
http://statistics.data.gov.uk/id/local-authority/47UB,Bromsgrove District Council,17/07/2015,2819,01197228132,32.80,E E Limited,3656,Executive Director Planning,Mobile Phone,4455,,
http://statistics.data.gov.uk/id/local-authority/47UB,Bromsgrove District Council,17/07/2015,2819,01197228132,35.00,E E Limited,3656,Executive Director Planning,Mobile Phone,4455,,
http://statistics.data.gov.uk/id/local-authority/47UB,Bromsgrove District Council,17/07/2015,2819,01197228132,28.50,E E Limited,3656,Holding - Central,Mobile Phone,4455,,
http://statistics.data.gov.uk/id/local-authority/47UB,Bromsgrove District Council,17/07/2015,2819,01197228132,80.00,E E Limited,3656,Licensing,Mobile Phone,4455,,
http://statistics.data.gov.uk/id/local-authority/47UB,Bromsgrove District Council,17/07/2015,2819,01197228132,57.00,E E Limited,3656,Management Costs,Mobile Phone,4455,,
http://statistics.data.gov.uk/id/local-authority/47UB,Bromsgrove District Council,17/07/2015,2819,01197228132,24.58,E E Limited,3656,Support,Mobile Phone,4455,,
http://statistics.data.gov.uk/id/local-authority/47UB,Bromsgrove District Council,17/07/2015,2819,01197228132,162.94,E E Limited,3656,Technical Pollution,Mobile Phone,4455,,
http://statistics.data.gov.uk/id/local-authority/47UB,Bromsgrove District Council,17/07/2015,2819,01197228132,80.25,E E Limited,3656,Trading Standards / Animal Hea,Mobile Phone,4455,,
http://statistics.data.gov.uk/id/local-authority/47UB,Bromsgrove District Council,17/07/2015,2819,01197228132,6.00,E E Limited,3656,Trading Standards / Animal Hea,Mobile Phone,4455,,
http://statistics.data.gov.uk/id/local-authority/47UB,Bromsgrove District Council,24/07/2015,3018,4061,"3,850.00",West Midlands Employers,422,Chief Executive,Subscriptions,4650,,
http://statistics.data.gov.uk/id/local-authority/47UB,Bromsgrove District Council,17/07/2015,1474,RCS528217,"1,770.00",Truckstop Hawkes,463,Executive Director And Deputy ,Vehicle Repairs/Maint'Ce,3757,,
http://statistics.data.gov.uk/id/local-authority/47UB,Bromsgrove District Council,24/07/2015,3036,6003106228,575.00,Capita Business Services,5005,Executive Director Of Finance,Software,8162,,
http://statistics.data.gov.uk/id/local-authority/47UB,Bromsgrove District Council,17/07/2015,2582,917371-059,"1,480.82",Virgin Media Payments Limited,507,Business Transformation,Internet,4213,,
http://statistics.data.gov.uk/id/local-authority/47UB,Bromsgrove District Council,31/07/2015,2215,RINV/00005700,"3,616.39",Bdht,5159,Executive Director And Deputy ,Bdht - Management Fee,5018,,
http://statistics.data.gov.uk/id/local-authority/47UB,Bromsgrove District Council,31/07/2015,2333,RINV/00005705,"47,407.41",Bdht,5159,Capital Schemes Community,Other Cap Grants,8706,,
http://statistics.data.gov.uk/id/local-authority/47UB,Bromsgrove District Council,31/07/2015,2334,RINV/00005706,"35,555.56",Bdht,5159,Capital Schemes Community,Other Cap Grants,8706,,
http://statistics.data.gov.uk/id/local-authority/47UB,Bromsgrove District Council,31/07/2015,2343,RINV/00005698,"4,118.33",Bdht,5159,Executive Director And Deputy ,Bdht - Management Fee,5018,,
http://statistics.data.gov.uk/id/local-authority/47UB,Bromsgrove District Council,31/07/2015,2351,RINV/00005699,"18,085.14",Bdht,5159,Executive Director And Deputy ,Bdht - Management Fee,5018,,
http://statistics.data.gov.uk/id/local-authority/47UB,Bromsgrove District Council,31/07/2015,2352,RINV/00005701,"4,118.33",Bdht,5159,Executive Director And Deputy ,Bdht - Management Fee,5018,,
http://statistics.data.gov.uk/id/local-authority/47UB,Bromsgrove District Council,31/07/2015,2353,RINV/00005702,"18,085.14",Bdht,5159,Executive Director And Deputy ,Bdht - Management Fee,5018,,
http://statistics.data.gov.uk/id/local-authority/47UB,Bromsgrove District Council,31/07/2015,2354,RINV/00005703,"3,616.39",Bdht,5159,Executive Director And Deputy ,Bdht - Management Fee,5018,,
http://statistics.data.gov.uk/id/local-authority/47UB,Bromsgrove District Council,24/07/2015,2390,RINV/00005725,800.00,Bdht,5159,Executive Director And Deputy ,Misc. Expenses,4730,,
http://statistics.data.gov.uk/id/local-authority/47UB,Bromsgrove District Council,31/07/2015,2415,RINV/00005720,"1,271.00",Bdht,5159,Executive Director Of Finance,Third Party Purchases,4010,,
http://statistics.data.gov.uk/id/local-authority/47UB,Bromsgrove District Council,24/07/2015,2416,RINV/00005721,847.40,Bdht,5159,Executive Director And Deputy ,Housing Benefit - Council Tax ,5314,,
http://statistics.data.gov.uk/id/local-authority/47UB,Bromsgrove District Council,24/07/2015,2417,RINV/00005722,"1,809.71",Bdht,5159,Executive Director And Deputy ,Bdht - Running Costs Reimburse,5019,,
http://statistics.data.gov.uk/id/local-authority/47UB,Bromsgrove District Council,24/07/2015,2419,RINV/00005724,"7,556.00",Bdht,5159,Executive Director And Deputy ,Bed-And-Breakfast Payments,3555,,
http://statistics.data.gov.uk/id/local-authority/47UB,Bromsgrove District Council,31/07/2015,2784,RINV/00005764,"3,750.00",Bdht,5159,Executive Director And Deputy ,Grants,4660,,
http://statistics.data.gov.uk/id/local-authority/47UB,Bromsgrove District Council,31/07/2015,2785,RINV/00005761,"18,085.14",Bdht,5159,Executive Director And Deputy ,Bdht - Management Fee,5018,,
http://statistics.data.gov.uk/id/local-authority/47UB,Bromsgrove District Council,31/07/2015,2786,RINV/00005762,"3,616.39",Bdht,5159,Executive Director And Deputy ,Bdht - Management Fee,5018,,
http://statistics.data.gov.uk/id/local-authority/47UB,Bromsgrove District Council,31/07/2015,2787,RINV/00005758,"4,118.33",Bdht,5159,Executive Director And Deputy ,Bdht - Management Fee,5018,,
http://statistics.data.gov.uk/id/local-authority/47UB,Bromsgrove District Council,31/07/2015,3249,RINV/00005708,"4,118.33",Bdht,5159,Executive Director And Deputy ,Bdht - Management Fee,5018,,
http://statistics.data.gov.uk/id/local-authority/47UB,Bromsgrove District Council,31/07/2015,3250,RINV/00005714,"18,085.14",Bdht,5159,Executive Director And Deputy ,Bdht - Management Fee,5018,,
http://statistics.data.gov.uk/id/local-authority/47UB,Bromsgrove District Council,31/07/2015,3251,RINV/00005715,"3,616.39",Bdht,5159,Executive Director And Deputy ,Bdht - Management Fee,5018,,
http://statistics.data.gov.uk/id/local-authority/47UB,Bromsgrove District Council,31/07/2015,3252,RINV/00005719,"3,750.00",Bdht,5159,Executive Director And Deputy ,Grants,4660,,
http://statistics.data.gov.uk/id/local-authority/47UB,Bromsgrove District Council,24/07/2015,1275,01434817,"2,913.00",Bevan Brittan,5161,Executive Director Of Finance,Professional Fees,4352,,
http://statistics.data.gov.uk/id/local-authority/47UB,Bromsgrove District Council,24/07/2015,1388,01432773,"1,121.00",Bevan Brittan,5161,Executive Director Of Finance,Professional Fees,4352,,
http://statistics.data.gov.uk/id/local-authority/47UB,Bromsgrove District Council,09/07/2015,2808,SETTLEMENT SUM,"75,599.42",Bevan Brittan,5161,Executive Director And Deputy ,Prior Year Adj,4750,,
http://statistics.data.gov.uk/id/local-authority/47UB,Bromsgrove District Council,24/07/2015,3029,01426483,"1,455.50",Bevan Brittan,5161,Executive Director Of Finance,Professional Fees,4352,,
http://statistics.data.gov.uk/id/local-authority/47UB,Bromsgrove District Council,24/07/2015,3035,01406135,"1,454.00",Bevan Brittan,5161,Executive Director Of Finance,Professional Fees,4352,,
http://statistics.data.gov.uk/id/local-authority/47UB,Bromsgrove District Council,10/07/2015,2393,IN12777,980.37,Matrix Scm Ltd,5367,Executive Director And Deputy ,Agency Staff,3020,,
http://statistics.data.gov.uk/id/local-authority/47UB,Bromsgrove District Council,10/07/2015,2393,IN12777,"3,805.67",Matrix Scm Ltd,5367,Executive Director And Deputy ,Agency Staff,3020,,
http://statistics.data.gov.uk/id/local-authority/47UB,Bromsgrove District Council,10/07/2015,2393,IN12777,835.11,Matrix Scm Ltd,5367,Executive Director And Deputy ,Agency Staff,3020,,
http://statistics.data.gov.uk/id/local-authority/47UB,Bromsgrove District Council,10/07/2015,2393,IN12777,885.72,Matrix Scm Ltd,5367,Licensing,Agency Staff,3020,,
http://statistics.data.gov.uk/id/local-authority/47UB,Bromsgrove District Council,10/07/2015,2597,IN12895,759.80,Matrix Scm Ltd,5367,Executive Director And Deputy ,Agency Staff,3020,,
http://statistics.data.gov.uk/id/local-authority/47UB,Bromsgrove District Council,10/07/2015,2597,IN12895,"5,842.03",Matrix Scm Ltd,5367,Executive Director And Deputy ,Agency Staff,3020,,
http://statistics.data.gov.uk/id/local-authority/47UB,Bromsgrove District Council,10/07/2015,2597,IN12895,"1,238.43",Matrix Scm Ltd,5367,Executive Director And Deputy ,Agency Staff,3020,,
http://statistics.data.gov.uk/id/local-authority/47UB,Bromsgrove District Council,10/07/2015,2597,IN12895,344.04,Matrix Scm Ltd,5367,Licensing,Agency Staff,3020,,
http://statistics.data.gov.uk/id/local-authority/47UB,Bromsgrove District Council,24/07/2015,2705,IN12957,385.14,Matrix Scm Ltd,5367,Executive Director And Deputy ,Agency Staff,3020,,
http://statistics.data.gov.uk/id/local-authority/47UB,Bromsgrove District Council,24/07/2015,2705,IN12957,"4,433.31",Matrix Scm Ltd,5367,Executive Director And Deputy ,Agency Staff,3020,,
http://statistics.data.gov.uk/id/local-authority/47UB,Bromsgrove District Council,24/07/2015,2705,IN12957,884.16,Matrix Scm Ltd,5367,Executive Director And Deputy ,Agency Staff,3020,,
http://statistics.data.gov.uk/id/local-authority/47UB,Bromsgrove District Council,24/07/2015,2705,IN12957,402.60,Matrix Scm Ltd,5367,Licensing,Agency Staff,3020,,
http://statistics.data.gov.uk/id/local-authority/47UB,Bromsgrove District Council,17/07/2015,2711,IN12836,"1,259.79",Matrix Scm Ltd,5367,Executive Director And Deputy ,Agency Staff,3020,,
http://statistics.data.gov.uk/id/local-authority/47UB,Bromsgrove District Council,17/07/2015,2711,IN12836,358.94,Matrix Scm Ltd,5367,Executive Director And Deputy ,Agency Staff,3020,,
http://statistics.data.gov.uk/id/local-authority/47UB,Bromsgrove District Council,17/07/2015,2711,IN12836,"3,663.21",Matrix Scm Ltd,5367,Executive Director And Deputy ,Agency Staff,3020,,
http://statistics.data.gov.uk/id/local-authority/47UB,Bromsgrove District Council,17/07/2015,2711,IN12836,431.79,Matrix Scm Ltd,5367,Executive Director And Deputy ,Agency Staff,3020,,
http://statistics.data.gov.uk/id/local-authority/47UB,Bromsgrove District Council,17/07/2015,2711,IN12836,483.12,Matrix Scm Ltd,5367,Licensing,Agency Staff,3020,,
http://statistics.data.gov.uk/id/local-authority/47UB,Bromsgrove District Council,31/07/2015,2900,IN13016,979.48,Matrix Scm Ltd,5367,Executive Director And Deputy ,Agency Staff,3020,,
http://statistics.data.gov.uk/id/local-authority/47UB,Bromsgrove District Council,31/07/2015,2900,IN13016,615.70,Matrix Scm Ltd,5367,Executive Director And Deputy ,Agency Staff,3020,,
http://statistics.data.gov.uk/id/local-authority/47UB,Bromsgrove District Council,31/07/2015,2900,IN13016,"3,849.56",Matrix Scm Ltd,5367,Executive Director And Deputy ,Agency Staff,3020,,
http://statistics.data.gov.uk/id/local-authority/47UB,Bromsgrove District Council,31/07/2015,2900,IN13016,835.11,Matrix Scm Ltd,5367,Executive Director And Deputy ,Agency Staff,3020,,
http://statistics.data.gov.uk/id/local-authority/47UB,Bromsgrove District Council,31/07/2015,3019,IN13078,"1,523.75",Matrix Scm Ltd,5367,Executive Director And Deputy ,Agency Staff,3020,,
http://statistics.data.gov.uk/id/local-authority/47UB,Bromsgrove District Council,31/07/2015,3019,IN13078,542.34,Matrix Scm Ltd,5367,Executive Director And Deputy ,Agency Staff,3020,,
http://statistics.data.gov.uk/id/local-authority/47UB,Bromsgrove District Council,31/07/2015,3019,IN13078,"3,374.36",Matrix Scm Ltd,5367,Executive Director And Deputy ,Agency Staff,3020,,
http://statistics.data.gov.uk/id/local-authority/47UB,Bromsgrove District Council,31/07/2015,3019,IN13078,"1,174.30",Matrix Scm Ltd,5367,Executive Director And Deputy ,Agency Staff,3020,,
http://statistics.data.gov.uk/id/local-authority/47UB,Bromsgrove District Council,31/07/2015,3019,IN13078,248.88,Matrix Scm Ltd,5367,Licensing,Agency Staff,3020,,
http://statistics.data.gov.uk/id/local-authority/47UB,Bromsgrove District Council,10/07/2015,2267,3000519,30.70,Craemer Uk Limited,5471,Bdc Balance Sheet,Received Not Invoiced,2096,,
http://statistics.data.gov.uk/id/local-authority/47UB,Bromsgrove District Council,10/07/2015,2267,3000519,"2,793.70",Craemer Uk Limited,5471,Bdc Balance Sheet,Cbs - Stores Account,1210,,
http://statistics.data.gov.uk/id/local-authority/47UB,Bromsgrove District Council,10/07/2015,2268,3000520,"12,525.60",Craemer Uk Limited,5471,Bdc Balance Sheet,Received Not Invoiced,2096,,
http://statistics.data.gov.uk/id/local-authority/47UB,Bromsgrove District Council,10/07/2015,2268,3000520,0.00,Craemer Uk Limited,5471,Bdc Balance Sheet,Cbs - Stores Account,1210,,
http://statistics.data.gov.uk/id/local-authority/47UB,Bromsgrove District Council,17/07/2015,2888,OP/1753670,398.83,Phoenix Software Limited,552,Business Transformation,Software Maintenance,4503,,
http://statistics.data.gov.uk/id/local-authority/47UB,Bromsgrove District Council,17/07/2015,2888,OP/1753670,398.83,Phoenix Software Limited,552,Business Transformation,Software Maintenance,4503,,
http://statistics.data.gov.uk/id/local-authority/47UB,Bromsgrove District Council,10/07/2015,1150,SL03096281INV,589.00,Northgate Vehicle Hire Ltd,5573,Executive Director And Deputy ,Contract Hire Of Vehicles,3761,,
http://statistics.data.gov.uk/id/local-authority/47UB,Bromsgrove District Council,10/07/2015,2379,SL03218771INV,837.00,Northgate Vehicle Hire Ltd,5573,Executive Director And Deputy ,Contract Hire Of Vehicles,3761,,
http://statistics.data.gov.uk/id/local-authority/47UB,Bromsgrove District Council,24/07/2015,2745,SL03279258INV,810.00,Northgate Vehicle Hire Ltd,5573,Executive Director And Deputy ,Contract Hire Of Vehicles,3761,,
http://statistics.data.gov.uk/id/local-authority/47UB,Bromsgrove District Council,10/07/2015,2391,1660841,"2,689.00",Kiddivouchers,5766,Bdc Balance Sheet,Payroll Deductions,1488,,
http://statistics.data.gov.uk/id/local-authority/47UB,Bromsgrove District Council,10/07/2015,2391,1660841,26.89,Kiddivouchers,5766,Business Transformation,Childminding Allowances,3014,,
http://statistics.data.gov.uk/id/local-authority/47UB,Bromsgrove District Council,10/07/2015,2599,1676048,"2,509.00",Kiddivouchers,5766,Bdc Balance Sheet,Payroll Deductions,1488,,
http://statistics.data.gov.uk/id/local-authority/47UB,Bromsgrove District Council,10/07/2015,2599,1676048,25.09,Kiddivouchers,5766,Business Transformation,Childminding Allowances,3014,,
http://statistics.data.gov.uk/id/local-authority/47UB,Bromsgrove District Council,31/07/2015,2619,91345448,"2,000.00",Northgate Public Services (Uk) Limited,577,Executive Director And Deputy ,Software Maintenance,4503,,
http://statistics.data.gov.uk/id/local-authority/47UB,Bromsgrove District Council,24/07/2015,1820,12548,"1,977.90",Jade Security Services Ltd,5886,Executive Director Of Finance,Contractors,3701,,
http://statistics.data.gov.uk/id/local-authority/47UB,Bromsgrove District Council,31/07/2015,2789,1-30 APRIL 15,"3,152.25",Wychavon Leisure Community Association,5911,Executive Director And Deputy ,Car Parking Costs,3901,,
http://statistics.data.gov.uk/id/local-authority/47UB,Bromsgrove District Council,31/07/2015,2790,1-31 MAY 15,"3,756.65",Wychavon Leisure Community Association,5911,Executive Director And Deputy ,Car Parking Costs,3901,,
http://statistics.data.gov.uk/id/local-authority/47UB,Bromsgrove District Council,10/07/2015,2795,2ND QUARTER,"82,500.00",Wychavon Leisure Community Association,5911,Executive Director And Deputy ,Grants,4660,,
http://statistics.data.gov.uk/id/local-authority/47UB,Bromsgrove District Council,24/07/2015,2891,23208,40.13,Furniture Hire Uk,59778,Executive Director Of Finance,Election Costs,4207,,
http://statistics.data.gov.uk/id/local-authority/47UB,Bromsgrove District Council,24/07/2015,2891,23208,518.87,Furniture Hire Uk,59778,Executive Director Of Finance,Election Costs,4207,,
http://statistics.data.gov.uk/id/local-authority/47UB,Bromsgrove District Council,24/07/2015,2891,23208,62.00,Furniture Hire Uk,59778,Executive Director Of Finance,Election Costs,4207,,
http://statistics.data.gov.uk/id/local-authority/47UB,Bromsgrove District Council,24/07/2015,2891,23208,62.00,Furniture Hire Uk,59778,Executive Director Of Finance,Election Costs,4207,,
http://statistics.data.gov.uk/id/local-authority/47UB,Bromsgrove District Council,24/07/2015,2891,23208,448.00,Furniture Hire Uk,59778,Executive Director Of Finance,Election Costs,4207,,
http://statistics.data.gov.uk/id/local-authority/47UB,Bromsgrove District Council,17/07/2015,862,23207,392.20,Furniture Hire Uk,59778,Executive Director Of Finance,Election Costs,4207,,
http://statistics.data.gov.uk/id/local-authority/47UB,Bromsgrove District Council,17/07/2015,862,23207,504.00,Furniture Hire Uk,59778,Executive Director Of Finance,Election Costs,4207,,
http://statistics.data.gov.uk/id/local-authority/47UB,Bromsgrove District Council,31/07/2015,2441,20975,936.00,Webb Display Services Ltd,59979,Executive Director And Deputy ,Publicity & Promotion,4700,,
http://statistics.data.gov.uk/id/local-authority/47UB,Bromsgrove District Council,31/07/2015,2441,20975,157.00,Webb Display Services Ltd,59979,Executive Director And Deputy ,Publicity & Promotion,4700,,
http://statistics.data.gov.uk/id/local-authority/47UB,Bromsgrove District Council,31/07/2015,2441,20975,135.00,Webb Display Services Ltd,59979,Executive Director And Deputy ,Publicity & Promotion,4700,,
http://statistics.data.gov.uk/id/local-authority/47UB,Bromsgrove District Council,24/07/2015,3078,WARD FUND,655.00,Catshill & District Working Mens Club Ltd,61057,Executive Director Of Finance,Ward Budget,4757,,
http://statistics.data.gov.uk/id/local-authority/47UB,Bromsgrove District Council,31/07/2015,3262,CIVIC CHARITY,"1,809.55",Libby Mae'S Little Angels,61138,Holding Codes,Holding/Suspense/Contra Accs,9008,,
http://statistics.data.gov.uk/id/local-authority/47UB,Bromsgrove District Council,31/07/2015,3263,CIVIC CHARITY,"1,809.55",Help For Heroes,61139,Holding Codes,Holding/Suspense/Contra Accs,9008,,
http://statistics.data.gov.uk/id/local-authority/47UB,Bromsgrove District Council,24/07/2015,2113,SN002088948,106.35,Berendsen Uk Ltd,6906,Executive Director And Deputy ,Office Equipment Hire & Rental,4001,,
http://statistics.data.gov.uk/id/local-authority/47UB,Bromsgrove District Council,24/07/2015,2113,SN002088948,106.35,Berendsen Uk Ltd,6906,Executive Director And Deputy ,Office Equipment Hire & Rental,4001,,
http://statistics.data.gov.uk/id/local-authority/47UB,Bromsgrove District Council,24/07/2015,2113,SN002088948,131.35,Berendsen Uk Ltd,6906,Executive Director And Deputy ,Office Equipment Hire & Rental,4001,,
http://statistics.data.gov.uk/id/local-authority/47UB,Bromsgrove District Council,24/07/2015,2113,SN002088948,220.00,Berendsen Uk Ltd,6906,Executive Director And Deputy ,Office Equipment Hire & Rental,4001,,
http://statistics.data.gov.uk/id/local-authority/47UB,Bromsgrove District Council,24/07/2015,3041,6416,"3,986.00",REDACTED DATA,694,Capital Schemes Community,Disabled Facilities Grant,8701,,
http://statistics.data.gov.uk/id/local-authority/47UB,Bromsgrove District Council,31/07/2015,3186,HWA194,"1,269.00",Helen Wilson Associates Limited,7086,Executive Director Planning,Consultants Fees,4351,,
http://statistics.data.gov.uk/id/local-authority/47UB,Bromsgrove District Council,10/07/2015,2796,1536,"1,130.00",Positive Environmental Ltd,7206,Technical Pollution,Contractors,5158,,
http://statistics.data.gov.uk/id/local-authority/47UB,Bromsgrove District Council,31/07/2015,3033,1638,"1,475.00",Positive Environmental Ltd,7206,Executive Director Of Finance,Elf - Essential Living Other,4752,,
http://statistics.data.gov.uk/id/local-authority/47UB,Bromsgrove District Council,10/07/2015,2739,300092978,700.00,Freight Transport Association,780,Executive Director And Deputy ,Subscriptions,4650,,
http://statistics.data.gov.uk/id/local-authority/47UB,Bromsgrove District Council,24/07/2015,2984,150525,"1,371.50",Event Staging Ltd,7849,Executive Director Of Finance,Election Costs,4207,,
http://statistics.data.gov.uk/id/local-authority/47UB,Bromsgrove District Council,24/07/2015,2984,150525,"1,371.50",Event Staging Ltd,7849,Executive Director Of Finance,Election Costs,4207,,
http://statistics.data.gov.uk/id/local-authority/47UB,Bromsgrove District Council,24/07/2015,2985,150526,693.00,Event Staging Ltd,7849,Executive Director Of Finance,Election Costs,4207,,
